[Event "New Zealand Rapid Championship"]
[Site "Wellington"]
[Date "2023.01.11"]
[Round "4.9"]
[White "Ker, Anthony F"]
[Black "Gold, Hamish R"]
[Result "1-0"]
[TimeControl "25+5"]
[WhiteTitle "IM"]
[WhiteFideId "4300084"]
[BlackFideId "4301579"]
[WhiteElo "2359"]
[BlackElo "1537"]

1. e4 {[%clk 00:25:08]} {[%emt 00:16:29]} e6 {[%clk 00:24:54]} {[%emt
00:00:16]} 2. d4 {[%clk 00:25:08]} {[%emt 00:00:05]} d5 {[%clk 00:24:55]}
{[%emt 00:00:06]} 3. Nc3 {[%clk 00:25:10]} {[%emt 00:00:02]} c6 {[%clk
00:24:44]} {[%emt 00:00:16]} 4. Nf3 {[%clk 00:24:02]} {[%emt 00:01:13]} Bb4
{[%clk 00:24:09]} {[%emt 00:00:39]} 5. e5 {[%clk 00:23:57]} {[%emt 00:00:11]}
Ne7 {[%clk 00:23:51]} {[%emt 00:00:23]} 6. Bd2 {[%clk 00:23:45]} {[%emt
00:00:17]} Bxc3 {[%clk 00:23:42]} {[%emt 00:00:14]} 7. Bxc3 {[%clk 00:23:45]}
{[%emt 00:00:06]} b6 {[%clk 00:23:33]} {[%emt 00:00:14]} 8. Bb4 {[%clk
00:23:18]} {[%emt 00:00:32]} a5 {[%clk 00:23:08]} {[%emt 00:00:30]} 9. Bd6
{[%clk 00:22:52]} {[%emt 00:00:31]} Nf5 {[%clk 00:22:36]} {[%emt 00:00:37]} 10.
Ba3 {[%clk 00:22:47]} {[%emt 00:00:10]} b5 {[%clk 00:22:24]} {[%emt 00:00:16]}
11. c3 {[%clk 00:22:44]} {[%emt 00:00:09]} Ba6 {[%clk 00:21:58]} {[%emt
00:00:31]} 12. Bd3 {[%clk 00:22:30]} {[%emt 00:00:19]} g6 {[%clk 00:21:47]}
{[%emt 00:00:16]} 13. h4 {[%clk 00:20:54]} {[%emt 00:01:41]} Nd7 {[%clk
00:21:16]} {[%emt 00:00:35]} 14. g4 {[%clk 00:20:49]} {[%emt 00:00:10]} Ng7
{[%emt 00:01:31]} 15. h5 {[%clk 00:19:57]} {[%emt 00:00:01]} gxh5 {[%clk
00:19:28]} {[%emt 00:01:24]} 16. gxh5 {[%clk 00:19:58]} {[%emt 00:00:05]} Qb6
{[%clk 00:19:18]} {[%emt 00:00:15]} 17. Bd6 {[%clk 00:19:25]} {[%emt 00:00:38]}
O-O-O {[%clk 00:19:05]} {[%emt 00:00:18]} 18. Ng5 {[%clk 00:19:13]} {[%emt
00:00:18]} f5 {[%clk 00:17:23]} {[%emt 00:01:46]} 19. Nf7 {[%clk 00:18:47]}
{[%emt 00:00:32]} c5 {[%clk 00:16:38]} {[%emt 00:00:50]} 20. Rg1 {[%clk
00:18:13]} {[%emt 00:00:39]} Ne8 {[%clk 00:16:01]} {[%emt 00:00:42]} 21. Be7
{[%clk 00:18:01]} {[%emt 00:00:17]} cxd4 {[%clk 00:15:46]} {[%emt 00:00:21]} 22.
Bxd8 {[%clk 00:17:54]} {[%emt 00:00:13]} Qc6 {[%clk 00:15:33]} {[%emt
00:00:17]} 23. cxd4 {[%clk 00:17:39]} {[%emt 00:00:20]} Qb7 {[%clk 00:14:51]}
{[%emt 00:00:46]} 24. Rc1+ {[%clk 00:17:34]} {[%emt 00:00:11]} Kb8 {[%clk
00:14:49]} {[%emt 00:00:07]} 25. Nxh8 {[%clk 00:17:27]} {[%emt 00:00:12]} Qa7
{[%clk 00:14:24]} {[%emt 00:00:28]} 26. Be2 {[%emt 00:01:04]} 1-0

[Event "New Zealand Rapid Championship"]
[Site "Wellington"]
[Date "2023.01.11"]
[Round "4.10"]
[White "Malcolm, Leo"]
[Black "Carpinter, Anthony L"]
[Result "0-1"]
[TimeControl "25+5"]
[WhiteFideId "4317408"]
[BlackFideId "4300238"]
[WhiteElo "1801"]
[BlackElo "2147"]

1. e4 {[%clk 00:25:09]} e6 {[%clk 00:24:05]} {[%emt 00:01:09]} 2. c4 {[%clk
00:25:11]} d5 {[%clk 00:23:51]} {[%emt 00:00:19]} 3. cxd5 {[%clk 00:25:13]}
{[%emt 00:00:02]} exd5 {[%clk 00:23:54]} {[%emt 00:00:02]} 4. Qb3 {[%clk
00:25:16]} {[%emt 00:00:02]} Nf6 {[%clk 00:22:41]} {[%emt 00:01:18]} 5. e5
{[%clk 00:25:16]} {[%emt 00:00:05]} Ne4 {[%clk 00:22:00]} {[%emt 00:00:46]} 6.
d4 {[%clk 00:24:35]} {[%emt 00:00:47]} Nc6 {[%clk 00:19:36]} {[%emt 00:02:29]}
7. Nf3 {[%clk 00:23:56]} {[%emt 00:00:44]} Bb4+ {[%clk 00:19:08]} {[%emt
00:00:33]} 8. Nc3 {[%clk 00:23:25]} {[%emt 00:00:36]} O-O {[%clk 00:16:40]}
{[%emt 00:02:34]} 9. Be3 {[%clk 00:22:49]} {[%emt 00:00:41]} Nxc3 {[%clk
00:14:41]} {[%emt 00:02:04]} 10. bxc3 {[%clk 00:22:51]} {[%emt 00:00:02]} Be7
{[%clk 00:14:45]} {[%emt 00:00:01]} 11. Bd3 {[%clk 00:22:36]} {[%emt 00:00:20]}
f5 {[%clk 00:14:24]} {[%emt 00:00:26]} 12. g3 {[%clk 00:20:55]} {[%emt
00:01:46]} Na5 {[%clk 00:12:28]} {[%emt 00:02:01]} 13. Qc2 {[%clk 00:20:19]}
{[%emt 00:00:41]} Nc4 {[%clk 00:12:30]} {[%emt 00:00:03]} 14. Bxc4 {[%clk
00:19:52]} {[%emt 00:00:31]} dxc4 {[%clk 00:12:33]} {[%emt 00:00:02]} 15. Qe2
{[%clk 00:19:43]} {[%emt 00:00:14]} Qd5 {[%clk 00:12:29]} {[%emt 00:00:09]} 16.
Rg1 {[%clk 00:19:17]} {[%emt 00:00:31]} b5 {[%clk 00:12:10]} {[%emt 00:00:24]}
17. g4 {[%clk 00:17:43]} {[%emt 00:01:40]} f4 {[%clk 00:12:04]} {[%emt
00:00:11]} 18. Bd2 {[%clk 00:17:46]} {[%emt 00:00:02]} a5 {[%clk 00:11:40]}
{[%emt 00:00:29]} 19. a3 {[%clk 00:17:08]} {[%emt 00:00:43]} Bb7 {[%clk
00:11:36]} {[%emt 00:00:08]} 20. Nh4 {[%clk 00:15:20]} {[%emt 00:01:53]} Bxh4
{[%clk 00:11:20]} {[%emt 00:00:22]} 21. g5 {[%clk 00:15:23]} {[%emt 00:00:02]}
Qf3 {[%clk 00:10:56]} {[%emt 00:00:29]} 22. Rg4 {[%clk 00:15:05]} {[%emt
00:00:23]} Bxf2+ {[%clk 00:10:50]} {[%emt 00:00:11]} 0-1

[Event "New Zealand Rapid Championship"]
[Site "Wellington"]
[Date "2023.01.11"]
[Round "4.11"]
[White "Nyberg, Michael"]
[Black "McDonald, Duncan"]
[Result "1-0"]
[TimeControl "25+5"]
[WhiteFideId "4301064"]
[BlackFideId "4314433"]
[WhiteElo "1951"]
[BlackElo "1372"]

1. d4 {[%clk 00:25:06]} {[%emt 00:00:04]} d5 {[%clk 00:25:08]} {[%emt
00:00:02]} 2. c4 {[%clk 00:25:04]} {[%emt 00:00:07]} e6 {[%clk 00:25:11]}
{[%emt 00:00:02]} 3. Nf3 {[%clk 00:25:03]} {[%emt 00:00:06]} Nf6 {[%clk
00:25:14]} {[%emt 00:00:02]} 4. g3 {[%clk 00:24:58]} {[%emt 00:00:09]} Be7
{[%clk 00:25:06]} {[%emt 00:00:14]} 5. Bg2 {[%clk 00:24:55]} {[%emt 00:00:07]}
O-O {[%clk 00:25:07]} {[%emt 00:00:03]} 6. cxd5 {[%clk 00:24:43]} {[%emt
00:00:18]} exd5 {[%clk 00:25:07]} {[%emt 00:00:05]} 7. O-O {[%clk 00:24:31]}
{[%emt 00:00:17]} c6 {[%clk 00:25:07]} {[%emt 00:00:05]} 8. Qc2 {[%clk
00:24:25]} {[%emt 00:00:11]} Bg4 {[%clk 00:24:36]} {[%emt 00:00:36]} 9. Bf4
{[%clk 00:24:04]} {[%emt 00:00:25]} Bd6 {[%clk 00:23:44]} {[%emt 00:00:58]} 10.
Ne5 {[%clk 00:23:52]} {[%emt 00:00:17]} Bh5 {[%clk 00:23:29]} {[%emt 00:00:20]}
11. Nc3 {[%clk 00:23:19]} {[%emt 00:00:39]} Re8 {[%clk 00:22:39]} {[%emt
00:00:55]} 12. Rfe1 {[%clk 00:23:07]} {[%emt 00:00:17]} Nbd7 {[%clk 00:22:07]}
{[%emt 00:00:36]} 13. Nxf7 {[%clk 00:22:48]} {[%emt 00:00:25]} Bxf7 {[%clk
00:21:43]} {[%emt 00:00:29]} 14. Bxd6 {[%clk 00:22:50]} {[%emt 00:00:02]} Nb6
{[%clk 00:21:03]} {[%emt 00:00:45]} 15. Bf4 {[%clk 00:22:30]} {[%emt 00:00:24]}
Bg6 {[%clk 00:20:48]} {[%emt 00:00:21]} 16. Qc1 {[%clk 00:22:01]} {[%emt
00:00:34]} Ne4 {[%clk 00:19:56]} {[%emt 00:00:58]} 17. Be5 {[%clk 00:21:20]}
{[%emt 00:00:44]} Nc4 {[%clk 00:18:54]} {[%emt 00:01:07]} 18. Nxe4 {[%clk
00:20:48]} {[%emt 00:00:37]} Nxe5 {[%emt 00:01:12]} 19. Nc5 Nc4 {[%clk
00:18:21]} {[%emt 00:00:02]} 20. b3 {[%clk 00:19:05]} {[%emt 00:01:22]} Nd6
{[%clk 00:18:16]} {[%emt 00:00:10]} 21. Bh3 {[%clk 00:18:03]} {[%emt 00:01:06]}
Qf6 {[%clk 00:15:25]} {[%emt 00:02:56]} 22. Qf4 {[%clk 00:16:56]} {[%emt
00:01:12]} Qxf4 {[%clk 00:14:53]} {[%emt 00:00:37]} 23. gxf4 {[%clk 00:16:59]}
{[%emt 00:00:01]} Re7 {[%clk 00:14:22]} {[%emt 00:00:36]} 24. e3 {[%clk
00:16:43]} {[%emt 00:00:22]} a5 {[%clk 00:11:02]} {[%emt 00:03:26]} 25. Nd7
{[%clk 00:16:31]} {[%emt 00:00:15]} Be4 {[%clk 00:10:35]} {[%emt 00:00:33]} 26.
Ne5 {[%clk 00:16:24]} {[%emt 00:00:13]} Bf5 {[%clk 00:09:44]} {[%emt 00:01:02]}
27. Bg2 {[%clk 00:15:49]} {[%emt 00:00:35]} Nf7 {[%clk 00:08:46]} {[%emt
00:01:13]} 28. Rac1 {[%clk 00:15:30]} {[%emt 00:00:11]} Nxe5 29. fxe5 {[%clk
00:15:27]} Ree8 {[%clk 00:07:38]} {[%emt 00:01:12]} 30. f3 {[%clk 00:13:59]}
{[%emt 00:01:34]} Rad8 {[%clk 00:06:47]} {[%emt 00:00:55]} 31. Rc5 {[%clk
00:13:19]} {[%emt 00:00:44]} Ra8 {[%clk 00:06:12]} {[%emt 00:00:41]} 32. e4
{[%clk 00:12:55]} {[%emt 00:00:28]} Be6 {[%clk 00:06:08]} {[%emt 00:00:09]} 33.
f4 {[%clk 00:12:33]} {[%emt 00:00:28]} dxe4 {[%clk 00:06:00]} {[%emt 00:00:13]}
34. Bxe4 {[%clk 00:12:35]} {[%emt 00:00:02]} g6 {[%clk 00:05:24]} {[%emt
00:00:42]} 35. d5 {[%clk 00:12:18]} {[%emt 00:00:22]} Bxd5 {[%clk 00:05:06]}
{[%emt 00:00:29]} 36. Bxd5+ {[%clk 00:12:19]} cxd5 {[%clk 00:05:09]} 37. Rxd5
{[%clk 00:12:22]} {[%emt 00:00:01]} Re7 {[%clk 00:05:02]} {[%emt 00:00:12]} 38.
Re4 {[%clk 00:11:50]} {[%emt 00:00:36]} Kf7 {[%clk 00:04:45]} {[%emt 00:00:27]}
39. Kf2 {[%clk 00:11:42]} {[%emt 00:00:10]} b6 {[%clk 00:04:22]} {[%emt
00:00:27]} 40. Ke3 {[%clk 00:11:37]} {[%emt 00:00:10]} Rc8 {[%clk 00:04:07]}
{[%emt 00:00:21]} 41. Rc4 {[%clk 00:11:33]} {[%emt 00:00:08]} Rxc4 {[%clk
00:03:27]} {[%emt 00:00:45]} 42. bxc4 {[%clk 00:11:36]} {[%emt 00:00:02]} Rc7
{[%clk 00:03:31]} {[%emt 00:00:01]} 43. Kd4 {[%clk 00:11:22]} {[%emt 00:00:18]}
Rc6 {[%clk 00:02:58]} {[%emt 00:00:39]} 44. Rd7+ {[%clk 00:11:08]} {[%emt
00:00:18]} Ke6 {[%emt 00:00:14]} 45. Rxh7 {[%clk 00:11:04]} {[%emt 00:00:02]}
Kf5 {[%clk 00:02:00]} {[%emt 00:01:02]} 46. Rf7+ {[%clk 00:10:59]} {[%emt
00:00:09]} Kg4 {[%emt 00:00:17]} 47. Rf6 {[%clk 00:10:56]} {[%emt 00:00:05]}
Rc7 {[%emt 00:00:33]} 48. e6 {[%clk 00:10:36]} {[%emt 00:00:22]} 1-0

[Event "New Zealand Rapid Championship"]
[Site "Wellington"]
[Date "2023.01.11"]
[Round "4.12"]
[White "Loke, Kayden"]
[Black "Nazeer, Afique"]
[Result "1-0"]
[TimeControl "25+5"]
[WhiteFideId "4313186"]
[BlackFideId "9970703"]
[WhiteElo "1907"]
[BlackElo "1669"]

1. e4 {[%clk 00:25:10]} e5 {[%clk 00:25:07]} {[%emt 00:00:03]} 2. Nf3 {[%clk
00:25:12]} {[%emt 00:00:03]} Nf6 {[%clk 00:25:08]} {[%emt 00:00:04]} 3. Nc3
{[%clk 00:25:15]} {[%emt 00:00:02]} d6 {[%clk 00:24:57]} {[%emt 00:00:16]} 4.
Bc4 {[%clk 00:25:15]} {[%emt 00:00:05]} h6 {[%clk 00:24:54]} {[%emt 00:00:08]}
5. d4 {[%clk 00:25:17]} {[%emt 00:00:03]} exd4 {[%clk 00:24:57]} {[%emt
00:00:03]} 6. Nxd4 {[%clk 00:25:19]} {[%emt 00:00:03]} Bd7 {[%clk 00:24:43]}
{[%emt 00:00:18]} 7. O-O {[%clk 00:25:20]} {[%emt 00:00:04]} Be7 {[%clk
00:24:45]} {[%emt 00:00:03]} 8. f4 {[%clk 00:25:18]} {[%emt 00:00:07]} c5
{[%clk 00:24:34]} {[%emt 00:00:16]} 9. Ndb5 {[%clk 00:25:15]} {[%emt 00:00:08]}
Bxb5 {[%clk 00:23:01]} {[%emt 00:01:38]} 10. Bxb5+ {[%clk 00:25:15]} {[%emt
00:00:06]} Nc6 {[%clk 00:23:00]} {[%emt 00:00:05]} 11. Be3 {[%clk 00:25:08]}
{[%emt 00:00:12]} O-O {[%clk 00:22:33]} {[%emt 00:00:32]} 12. Bxc6 {[%clk
00:25:10]} {[%emt 00:00:03]} bxc6 {[%clk 00:22:35]} {[%emt 00:00:03]} 13. e5
{[%clk 00:25:13]} {[%emt 00:00:03]} dxe5 {[%clk 00:20:54]} {[%emt 00:01:46]} 14.
fxe5 {[%clk 00:25:15]} {[%emt 00:00:03]} Nd5 {[%clk 00:20:50]} {[%emt
00:00:09]} 15. Nxd5 {[%clk 00:25:15]} {[%emt 00:00:05]} cxd5 {[%clk 00:20:39]}
{[%emt 00:00:15]} 16. Qg4 {[%clk 00:25:17]} {[%emt 00:00:03]} Qc8 {[%clk
00:19:48]} {[%emt 00:00:56]} 17. Qg3 {[%clk 00:25:14]} {[%emt 00:00:08]} Qe6
{[%clk 00:19:48]} {[%emt 00:00:05]} 18. Rf3 {[%clk 00:25:12]} {[%emt 00:00:07]}
d4 {[%clk 00:18:50]} {[%emt 00:01:04]} 19. Bd2 {[%clk 00:25:15]} {[%emt
00:00:02]} Qg6 {[%clk 00:17:17]} {[%emt 00:01:38]} 20. Qxg6 {[%clk 00:25:16]}
{[%emt 00:00:09]} fxg6 {[%clk 00:17:21]} 21. Raf1 {[%clk 00:25:14]} {[%emt
00:00:02]} Rxf3 {[%clk 00:15:56]} {[%emt 00:01:30]} 22. Rxf3 {[%clk 00:25:16]}
{[%emt 00:00:03]} Rf8 {[%clk 00:15:51]} {[%emt 00:00:11]} 23. Rxf8+ {[%clk
00:25:18]} {[%emt 00:00:02]} Kxf8 {[%emt 00:00:02]} 24. Kf2 {[%clk 00:25:21]}
Kf7 {[%clk 00:15:59]} 25. Kf3 {[%clk 00:25:22]} {[%emt 00:00:04]} Ke6 {[%clk
00:16:03]} {[%emt 00:00:02]} 26. Ke4 {[%clk 00:25:26]} g5 {[%clk 00:15:28]}
{[%emt 00:00:40]} 27. Ba5 {[%clk 00:25:27]} {[%emt 00:00:03]} g6 {[%clk
00:14:53]} {[%emt 00:00:39]} 28. g4 {[%clk 00:25:30]} {[%emt 00:00:03]} h5
{[%clk 00:14:49]} {[%emt 00:00:10]} 29. h3 {[%clk 00:25:33]} a6 {[%clk
00:08:03]} {[%emt 00:06:52]} 30. Bc7 {[%clk 00:25:34]} {[%emt 00:00:04]} Kd7
{[%clk 00:07:35]} {[%emt 00:00:33]} 31. Bb8 {[%clk 00:25:36]} {[%emt 00:00:02]}
Kc6 {[%clk 00:07:27]} {[%emt 00:00:14]} 32. e6 {[%clk 00:25:38]} {[%emt
00:00:03]} Bf6 {[%clk 00:07:10]} {[%emt 00:00:22]} 33. Be5 {[%clk 00:25:29]}
{[%emt 00:00:15]} Be7 {[%clk 00:06:58]} {[%emt 00:00:15]} 34. Bg7 {[%clk
00:25:32]} {[%emt 00:00:01]} Kd6 {[%clk 00:06:33]} {[%emt 00:00:30]} 35. gxh5
{[%clk 00:25:36]} {[%emt 00:00:01]} gxh5 {[%clk 00:06:11]} {[%emt 00:00:27]} 36.
Kf5 {[%clk 00:25:39]} {[%emt 00:00:02]} g4 {[%clk 00:04:55]} {[%emt 00:01:21]}
37. hxg4 {[%clk 00:25:43]} {[%emt 00:00:06]} h4 {[%clk 00:04:55]} 38. Be5+
{[%clk 00:25:43]} {[%emt 00:00:05]} Kd5 {[%clk 00:04:46]} {[%emt 00:00:14]} 39.
Bh2 {[%clk 00:25:42]} {[%emt 00:00:05]} h3 {[%clk 00:04:39]} {[%emt 00:00:13]}
40. g5 {[%clk 00:25:46]} {[%emt 00:00:01]} Bd6 {[%clk 00:04:33]} {[%emt
00:00:10]} 41. Bg1 {[%clk 00:25:45]} {[%emt 00:00:06]} h2 {[%clk 00:04:32]}
{[%emt 00:00:07]} 42. Bxh2 {[%clk 00:25:49]} {[%emt 00:00:02]} Bxh2 {[%clk
00:04:36]} 43. e7 {[%clk 00:25:53]} c4 {[%clk 00:04:21]} {[%emt 00:00:19]} 44.
e8=Q {[%clk 00:25:56]} {[%emt 00:00:03]} Bd6 {[%clk 00:03:36]} {[%emt
00:00:50]} 45. g6 {[%clk 00:26:00]} {[%emt 00:00:01]} d3 {[%clk 00:03:40]}
{[%emt 00:00:01]} 46. cxd3 {[%clk 00:25:57]} {[%emt 00:00:08]} cxd3 {[%clk
00:03:43]} {[%emt 00:00:01]} 47. g7 {[%clk 00:26:01]} {[%emt 00:00:01]} d2
{[%clk 00:03:46]} {[%emt 00:00:02]} 48. Qe4+ {[%clk 00:26:05]} Kc5 {[%clk
00:03:50]} {[%emt 00:00:02]} 49. Qc2+ {[%clk 00:26:09]} {[%emt 00:00:01]} Kd5
{[%clk 00:03:53]} {[%emt 00:00:02]} 50. Qxd2+ {[%emt 00:00:05]} 1-0

[Event "New Zealand Rapid Championship"]
[Site "Wellington"]
[Date "2023.01.11"]
[Round "4.13"]
[White "Zhang, Kendrick Botong"]
[Black "Barnett-Harris, Lucas"]
[Result "1-0"]
[TimeControl "25+5"]
[WhiteTitle "CM"]
[WhiteFideId "4307704"]
[BlackFideId "467600"]
[WhiteElo "1870"]
[BlackElo "1470"]

1. e4 {[%clk 00:25:08]} {[%emt 00:00:03]} c5 {[%clk 00:25:08]} {[%emt
00:00:01]} 2. Nf3 {[%clk 00:25:03]} {[%emt 00:00:10]} Nc6 {[%clk 00:25:11]}
{[%emt 00:00:03]} 3. d4 {[%clk 00:25:01]} {[%emt 00:00:07]} cxd4 {[%clk
00:25:14]} 4. Nxd4 {[%clk 00:24:58]} {[%emt 00:00:08]} e6 {[%clk 00:25:18]}
{[%emt 00:00:02]} 5. Nc3 {[%clk 00:24:44]} {[%emt 00:00:14]} Nf6 {[%clk
00:25:01]} {[%emt 00:00:26]} 6. Be3 {[%clk 00:24:22]} {[%emt 00:00:27]} Bb4
{[%clk 00:24:36]} {[%emt 00:00:30]} 7. f3 {[%clk 00:22:27]} {[%emt 00:02:00]}
d5 {[%clk 00:24:18]} {[%emt 00:00:23]} 8. Nxc6 {[%clk 00:22:15]} {[%emt
00:00:17]} bxc6 {[%clk 00:24:16]} {[%emt 00:00:07]} 9. exd5 {[%clk 00:21:57]}
{[%emt 00:00:23]} cxd5 {[%clk 00:24:04]} {[%emt 00:00:17]} 10. Bd4 {[%clk
00:21:52]} {[%emt 00:00:10]} O-O {[%clk 00:23:27]} {[%emt 00:00:42]} 11. Bb5
{[%clk 00:20:54]} {[%emt 00:01:03]} Bd7 {[%clk 00:22:26]} {[%emt 00:01:06]} 12.
Bxd7 {[%clk 00:20:32]} {[%emt 00:00:26]} Qxd7 {[%clk 00:22:30]} {[%emt
00:00:02]} 13. a3 {[%clk 00:19:57]} {[%emt 00:00:40]} Ba5 {[%clk 00:22:24]}
{[%emt 00:00:10]} 14. Qd2 {[%clk 00:19:22]} {[%emt 00:00:40]} Rab8 {[%clk
00:21:37]} {[%emt 00:00:52]} 15. b4 {[%clk 00:17:29]} {[%emt 00:01:58]} Bb6
{[%clk 00:21:31]} {[%emt 00:00:11]} 16. O-O {[%clk 00:17:10]} {[%emt 00:00:23]}
Rfc8 {[%clk 00:20:03]} {[%emt 00:01:34]} 17. Bxb6 {[%clk 00:17:06]} {[%emt
00:00:11]} Rxb6 {[%clk 00:19:55]} {[%emt 00:00:11]} 18. Ne2 {[%clk 00:16:57]}
{[%emt 00:00:14]} Rbc6 {[%clk 00:19:28]} {[%emt 00:00:32]} 19. Nd4 {[%clk
00:17:00]} {[%emt 00:00:02]} Rc4 {[%clk 00:19:28]} {[%emt 00:00:05]} 20. Rfc1
{[%clk 00:15:55]} {[%emt 00:01:11]} Qd6 {[%clk 00:18:38]} {[%emt 00:00:55]} 21.
Nb3 {[%clk 00:15:46]} {[%emt 00:00:14]} Qc7 {[%clk 00:16:55]} {[%emt 00:01:48]}
22. Nc5 {[%clk 00:15:29]} {[%emt 00:00:21]} Nd7 {[%clk 00:16:48]} {[%emt
00:00:13]} 23. Nxd7 {[%clk 00:15:30]} {[%emt 00:00:04]} Qxd7 {[%clk 00:16:51]}
{[%emt 00:00:01]} 24. Ra2 {[%clk 00:15:14]} {[%emt 00:00:21]} Rc3 {[%clk
00:16:33]} {[%emt 00:00:24]} 25. Qd4 {[%clk 00:14:57]} {[%emt 00:00:24]} R8c4
{[%clk 00:16:14]} {[%emt 00:00:22]} 26. Qe5 {[%clk 00:14:28]} {[%emt 00:00:38]}
Qa4 {[%clk 00:15:28]} {[%emt 00:00:47]} 27. f4 {[%clk 00:13:21]} {[%emt
00:01:11]} h6 {[%clk 00:14:50]} {[%emt 00:00:43]} 28. f5 {[%clk 00:13:09]}
{[%emt 00:00:17]} exf5 {[%clk 00:12:51]} {[%emt 00:02:05]} 29. Qxf5 {[%clk
00:12:53]} {[%emt 00:00:20]} d4 {[%clk 00:11:51]} {[%emt 00:01:06]} 30. Rf1
{[%clk 00:12:16]} {[%emt 00:00:46]} Rc7 {[%clk 00:11:06]} {[%emt 00:00:54]} 31.
Qd5 {[%clk 00:11:31]} {[%emt 00:00:41]} Rd7 {[%clk 00:09:50]} {[%emt 00:01:21]}
32. Qa8+ {[%clk 00:11:03]} {[%emt 00:00:33]} Kh7 {[%clk 00:09:52]} {[%emt
00:00:03]} 33. Qe4+ {[%clk 00:11:06]} {[%emt 00:00:02]} Kg8 {[%clk 00:09:45]}
{[%emt 00:00:12]} 34. Qe8+ {[%clk 00:10:20]} {[%emt 00:00:53]} Kh7 {[%clk
00:09:28]} {[%emt 00:00:20]} 35. Rxf7 {[%clk 00:10:09]} {[%emt 00:00:16]} Rcc7
{[%clk 00:09:18]} {[%emt 00:00:16]} 36. Qe4+ {[%clk 00:09:29]} {[%emt
00:00:45]} Kg8 {[%clk 00:09:07]} {[%emt 00:00:16]} 37. Qe8+ {[%clk 00:09:33]}
{[%emt 00:00:01]} Kh7 {[%clk 00:09:04]} {[%emt 00:00:07]} 38. Rf8 {[%clk
00:09:22]} {[%emt 00:00:16]} g6 {[%clk 00:07:46]} {[%emt 00:01:23]} 39. Rh8+
{[%clk 00:09:26]} {[%emt 00:00:01]} Kg7 {[%clk 00:07:48]} {[%emt 00:00:02]} 40.
Qf8# {[%clk 00:09:30]} {[%emt 00:00:02]} 1-0

[Event "New Zealand Rapid Championship"]
[Site "Wellington"]
[Date "2023.01.11"]
[Round "4.14"]
[White "Campbell, Cazna"]
[Black "Perrin, Brent"]
[Result "0-1"]
[TimeControl "25+5"]
[WhiteFideId "4320808"]
[BlackFideId "451380"]
[WhiteElo "1701"]
[BlackElo "1856"]

1. c4 {[%clk 00:25:08]} {[%emt 00:00:03]} f5 {[%clk 00:25:09]} 2. Nc3 {[%clk
00:25:10]} {[%emt 00:00:02]} Nf6 {[%clk 00:25:11]} {[%emt 00:00:04]} 3. g3
{[%clk 00:25:08]} {[%emt 00:00:07]} d6 {[%clk 00:25:14]} {[%emt 00:00:01]} 4.
Bg2 {[%clk 00:25:09]} {[%emt 00:00:03]} e5 {[%clk 00:25:17]} {[%emt 00:00:02]}
5. d3 {[%clk 00:25:08]} {[%emt 00:00:07]} Be7 {[%clk 00:25:20]} 6. e4 {[%clk
00:25:09]} {[%emt 00:00:04]} O-O {[%clk 00:25:22]} {[%emt 00:00:04]} 7. Nge2
{[%clk 00:25:11]} {[%emt 00:00:03]} Nc6 {[%clk 00:25:18]} {[%emt 00:00:08]} 8.
O-O {[%clk 00:25:11]} {[%emt 00:00:04]} a5 {[%clk 00:25:07]} {[%emt 00:00:17]}
9. h3 {[%clk 00:24:31]} {[%emt 00:00:48]} Qe8 {[%clk 00:24:50]} {[%emt
00:00:19]} 10. Be3 {[%clk 00:22:55]} {[%emt 00:01:41]} f4 {[%clk 00:23:36]}
{[%emt 00:01:19]} 11. gxf4 {[%clk 00:22:00]} {[%emt 00:01:00]} exf4 {[%clk
00:23:24]} {[%emt 00:00:16]} 12. Nxf4 {[%clk 00:21:54]} {[%emt 00:00:11]} Ne5
{[%clk 00:22:38]} {[%emt 00:00:52]} 13. Nfd5 {[%clk 00:19:37]} {[%emt
00:02:22]} Bd8 {[%clk 00:21:35]} {[%emt 00:01:08]} 14. f4 {[%clk 00:19:04]}
{[%emt 00:00:37]} Ng6 {[%clk 00:21:22]} {[%emt 00:00:18]} 15. d4 {[%clk
00:18:02]} {[%emt 00:01:07]} Nh4 {[%clk 00:20:42]} {[%emt 00:00:44]} 16. Nxf6+
{[%clk 00:17:06]} {[%emt 00:01:02]} Bxf6 {[%clk 00:20:02]} {[%emt 00:00:45]} 17.
e5 {[%clk 00:16:33]} {[%emt 00:00:38]} Nxg2 {[%clk 00:19:28]} {[%emt 00:00:38]}
18. Kxg2 {[%clk 00:16:37]} {[%emt 00:00:02]} Qg6+ {[%clk 00:19:10]} {[%emt
00:00:24]} 19. Kh2 {[%clk 00:16:37]} {[%emt 00:00:05]} Qh6 {[%clk 00:18:25]}
{[%emt 00:00:49]} 20. Qf3 {[%clk 00:15:14]} {[%emt 00:01:28]} Bd8 {[%clk
00:17:40]} {[%emt 00:00:51]} 21. f5 {[%clk 00:14:40]} {[%emt 00:00:39]} Bg5
{[%clk 00:16:16]} {[%emt 00:01:29]} 22. Bxg5 {[%clk 00:13:28]} {[%emt
00:01:17]} Qxg5 {[%clk 00:16:20]} {[%emt 00:00:01]} 23. e6 {[%clk 00:13:22]}
{[%emt 00:00:11]} Bxe6 {[%clk 00:16:05]} {[%emt 00:00:20]} 24. fxe6 {[%clk
00:11:19]} {[%emt 00:02:08]} Rxf3 {[%clk 00:15:48]} {[%emt 00:00:22]} 25. Rxf3
{[%clk 00:11:23]} {[%emt 00:00:01]} Qd2+ {[%clk 00:13:06]} {[%emt 00:02:51]} 26.
Kg1 {[%clk 00:10:46]} {[%emt 00:01:07]} Qxd4+ {[%clk 00:13:08]} 27. Kf1 {[%clk
00:10:19]} {[%emt 00:00:05]} Qxc4+ {[%clk 00:12:33]} {[%emt 00:00:49]} 28. Kf2
{[%clk 00:09:31]} {[%emt 00:00:45]} Qxe6 {[%clk 00:11:15]} {[%emt 00:01:22]} 29.
Re1 {[%clk 00:09:35]} {[%emt 00:00:02]} Qh6 {[%clk 00:10:50]} {[%emt 00:00:30]}
30. Re7 {[%clk 00:09:21]} {[%emt 00:00:19]} Qh4+ {[%clk 00:10:53]} {[%emt
00:00:02]} 0-1